bitfinex/quotes_SOLUSD_20241125
["timestamp","ask_amount","ask_price","bid_price","bid_amount"]
[1732556444173,2.5141,238.65,238.61,18.12755156]
[1732556444778,2.5138,238.68,238.61,18.12755156]
[1732556445361,23.776884,238.66,238.59,18.12755156]
[1732556446253,23.776884,238.64,238.59,18.12755156]
[1732556448156,26.291084,238.64,238.52,21.8055]
[1732556448483,23.776884,238.58,238.52,39.93305156]
[1732556448865,23.776884,238.58,238.53,18.12755156]
[1732556449059,23.776884,238.6,238.53,18.12755156]
[1732556449267,41.90443556,238.6,238.53,18.12755156]
[1732556449593,2.5147,238.59,238.53,18.12755156]
[1732556449881,23.776884,238.58,238.53,18.12755156]
[1732556450464,2.5147,238.59,238.53,18.12755156]
[1732556450987,2.5147,238.59,238.52,21.8055]
[1732556451888,41.90443556,238.58,238.52,15.6942]
[1732556452070,2.5149,238.57,238.52,15.6942]
[1732556452260,23.776884,238.58,238.52,15.6942]
[1732556452454,26.291784,238.58,238.53,18.12755156]
[1732556452675,2.5149,238.58,238.53,18.12755156]
[1732556453072,20.64185156,238.63,238.56,18.12755156]
[1732556453261,2.5143,238.63,238.56,18.12755156]
[1732556453462,23.776884,238.6,238.5,6.554317]
[1732556453782,41.90443556,238.62,238.54,18.12755156]
[1732556453959,23.776884,238.62,238.55,18.12755156]
[1732556454160,23.776884,238.62,238.5,6.554317]
[1732556454161,23.776884,238.6,238.54,18.12755156]
[1732556454981,41.90443556,238.6,238.5,2.361517]
[1732556455190,18.12755156,238.58,238.5,20.48906856]
[1732556455483,41.90443556,238.6,238.52,18.12755156]
[1732556455785,18.12755156,238.58,238.5,20.48906856]
[1732556456285,2.5149,238.57,238.5,20.48906856]
[1732556457062,20.64245156,238.58,238.5,24.68186856]
[1732556457285,20.64245156,238.58,238.5,20.48906856]
[1732556457780,2.5149,238.58,238.52,18.12755156]
[1732556458175,20.64245156,238.58,238.5,20.48906856]
[1732556458565,23.776884,238.57,238.5,20.48906856]
[1732556458890,23.776884,238.57,238.5,2.361517]
[1732556458891,23.776884,238.55,238.5,2.361517]
[1732556459269,18.12755156,238.54,238.5,2.361517]
[1732556459869,23.776884,238.55,238.5,2.361517]
[1732556460194,18.12755156,238.54,238.5,2.361517]
[1732556460401,23.776884,238.55,238.5,2.361517]
[1732556460402,41.90443556,238.55,238.5,2.361517]
[1732556460689,18.12755156,238.56,238.5,2.361517]
[1732556460990,23.776884,238.55,238.5,2.361517]
[1732556461777,2.5151,238.56,238.5,2.361517]
[1732556461973,2.5151,238.56,238.51,18.12755156]
[1732556462281,2.5151,238.56,238.5,2.361517]
[1732556462481,6.2867,238.6,238.5,2.361517]
[1732556462482,26.291584,238.59,238.51,18.12755156]
[1732556462675,18.12755156,238.58,238.5,2.361517]
[1732556462872,2.5147,238.59,238.51,18.12755156]
[1732556463175,2.5145,238.61,238.55,18.12755156]
[1732556463691,2.5144,238.63,238.57,18.12755156]
[1732556464504,18.12755156,238.64,238.57,18.12755156]
[1732556464799,18.12755156,238.62,238.55,18.12755156]
[1732556464977,18.12755156,238.6,238.53,18.12755156]
[1732556465170,18.12755156,238.6,238.51,18.12755156]
[1732556465385,18.12755156,238.64,238.55,18.12755156]
[1732556465594,6.285,238.67,238.53,18.12755156]
[1732556465781,23.776884,238.61,238.53,18.12755156]
[1732556466292,18.12755156,238.6,238.51,18.12755156]
[1732556466792,18.12755156,238.58,238.5,2.361517]
[1732556466992,18.12755156,238.52,238.5,2.361517]
[1732556467170,33.776884,238.51,238.5,2.361517]
[1732556467367,23.776884,238.51,238.42,0.4748604]
[1732556467589,18.12755156,238.44,238.42,0.4748604]
[1732556467771,18.12755156,238.44,238.38,12.1254604]
[1732556467970,18.12755156,238.4,238.31,18.12755156]
[1732556468170,18.12755156,238.38,238.31,18.12755156]
[1732556468371,18.12755156,238.4,238.3,6.2101]
[1732556468602,2.5168,238.39,238.31,18.12755156]
[1732556469399,18.12755156,238.36,238.3,6.2101]
[1732556469700,18.12755156,238.36,238.28,18.12755156]
[1732556470573,2.5173,238.35,238.28,18.12755156]
[1732556471370,18.12755156,238.38,238.3,18.12755156]
[1732556471602,18.12755156,238.39,238.31,18.12755156]
[1732556471978,18.12755156,238.42,238.34,18.12755156]
[1732556472298,18.12755156,238.41,238.34,18.12755156]
[1732556472495,2.5167,238.4,238.34,18.12755156]
[1732556472695,18.12755156,238.43,238.36,18.12755156]
[1732556472935,2.5163,238.45,238.38,18.12755156]
[1732556473071,2.5161,238.46,238.33,0.12549]
[1732556473272,2.5161,238.46,238.34,0.12549]
[1732556473702,18.12755156,238.43,238.29,0.12549]
[1732556473896,18.12755156,238.43,238.36,18.12755156]
[1732556474204,2.5161,238.46,238.4,18.12755156]
[1732556474509,2.5163,238.44,238.38,18.12755156]
[1732556474682,8.8065,238.46,238.27,1.6427817]
[1732556474889,8.8065,238.46,238.31,18.12755156]
[1732556474890,18.12755156,238.4,238.31,18.12755156]
[1732556475187,18.12755156,238.42,238.33,8.12755156]
[1732556475506,18.12755156,238.4,238.32,18.12755156]
[1732556475677,18.12755156,238.4,238.26,4.197]
[1732556475678,18.12755156,238.36,238.28,18.12755156]
[1732556475882,18.12755156,238.38,238.28,18.12755156]
[1732556476097,18.12755156,238.36,238.28,18.12755156]
[1732556476308,23.776884,238.35,238.28,18.12755156]
[1732556476678,2.5174,238.34,238.28,18.12755156]
[1732556477181,2.5174,238.34,238.26,18.12755156]
[1732556477481,2.5174,238.34,238.3,18.12755156]
[1732556477709,26.293784,238.38,238.3,18.12755156]
[1732556477877,44.42133556,238.38,238.3,18.12755156]
[1732556478199,2.5162,238.45,238.37,18.12755156]
[1732556478780,18.12755156,238.43,238.35,18.12755156]
[1732556479507,18.12755156,238.43,238.33,18.12755156]
[1732556479800,18.12755156,238.43,238.35,18.12755156]
[1732556480689,2.5165,238.42,238.35,18.12755156]
[1732556481001,2.5165,238.42,238.37,18.12755156]
[1732556481392,2.5165,238.42,238.31,4.1961]
[1732556481393,41.90443556,238.41,238.31,18.12755156]
[1732556481708,41.90443556,238.41,238.33,18.12755156]
[1732556481898,18.12755156,238.34,238.25,15.068]
[1732556482089,18.12755156,238.31,238.25,15.068]
[1732556482289,15.2453,238.42,238.28,18.12755156]
[1732556482290,18.12755156,238.35,238.28,18.12755156]
[1732556482498,18.12755156,238.39,238.3,18.12755156]
[1732556482703,23.776884,238.37,238.3,18.12755156]
[1732556483014,18.12755156,238.33,238.26,18.12755156]
[1732556483199,18.12755156,238.35,238.26,18.12755156]
[1732556483702,18.12755156,238.33,238.25,15.068]
[1732556483911,23.776884,238.34,238.26,18.12755156]
[1732556484403,23.776884,238.36,238.29,18.12755156]
[1732556484610,2.5173,238.35,238.29,18.12755156]
[1732556484805,2.5173,238.35,238.24,4.1974]
[1732556484806,2.5173,238.35,238.33,18.12755156]
[1732556485188,6.2914,238.42,238.33,18.12755156]
[1732556485385,6.2914,238.42,238.35,18.12755156]
[1732556485816,18.12755156,238.41,238.33,18.12755156]
[1732556486107,6.2914,238.42,238.35,18.12755156]
[1732556486409,2.5165,238.42,238.35,18.12755156]
[1732556487399,18.12755156,238.41,238.33,34.16285156]
[1732556487998,18.12755156,238.41,238.33,33.66285156]
[1732556488315,2.5167,238.4,238.33,33.66285156]
[1732556488698,2.5167,238.4,238.33,18.12755156]
[1732556489719,2.5167,238.4,238.35,18.12755156]
[1732556490199,2.5165,238.42,238.35,18.12755156]
[1732556490797,2.5165,238.42,238.39,18.12755156]
[1732556491205,2.5165,238.42,238.35,18.12755156]
[1732556492301,18.12755156,238.41,238.34,15.5185]
[1732556492499,18.12755156,238.41,238.33,18.12755156]
[1732556492890,2.5165,238.42,238.37,18.12755156]
[1732556493105,2.5157,238.5,238.41,18.12755156]
[1732556493311,2.5157,238.5,238.33,0.12549]
[1732556493312,2.5157,238.5,238.44,18.12755156]
[1732556494418,2.5157,238.5,238.42,18.12755156]
[1732556494606,18.12755156,238.5,238.42,18.12755156]
[1732556494918,18.12755156,238.48,238.4,18.12755156]
[1732556495093,18.12755156,238.46,238.38,18.12755156]
[1732556495429,18.12755156,238.46,238.39,18.12755156]
[1732556495612,18.12755156,238.48,238.41,18.12755156]
[1732556495809,18.12755156,238.46,238.37,18.12755156]
[1732556495986,21.3789,238.55,238.31,6.4435]
[1732556495987,18.12755156,238.38,238.31,6.4435]
[1732556496190,18.12755156,238.35,238.29,15.9396]
[1732556496418,18.12755156,238.35,238.27,18.12755156]
[1732556496419,2.5174,238.34,238.27,18.12755156]
[1732556496721,2.5174,238.34,238.29,18.12755156]
[1732556496904,2.5174,238.34,238.28,18.12755156]
[1732556497216,23.776884,238.38,238.31,18.12755156]
[1732556497592,18.12755156,238.37,238.29,18.12755156]
[1732556497822,18.12755156,238.37,238.3,18.12755156]
[1732556498394,2.5172,238.36,238.3,18.12755156]
[1732556500017,41.90443556,238.35,238.27,18.12755156]
[1732556501015,18.12755156,238.33,238.25,18.12755156]
[1732556501311,18.12755156,238.28,238.22,29.93239167]
[1732556502020,23.776884,238.33,238.26,18.12755156]
[1732556503023,2.5174,238.34,238.28,18.12755156]
[1732556506120,2.5173,238.35,238.28,18.12755156]
[1732556506696,18.12755156,238.32,238.22,48.05994323]
[1732556507224,18.12755156,238.32,238.24,18.12755156]
[1732556507517,23.776884,238.31,238.24,18.12755156]
[1732556508014,2.5178,238.3,238.24,18.12755156]
[1732556509905,2.5177,238.31,238.24,18.12755156]
[1732556510710,41.90443556,238.3,238.22,48.05994323]
[1732556511517,23.776884,238.3,238.24,18.12755156]
[1732556511902,6.2943,238.31,238.24,18.12755156]
[1732556513014,41.90443556,238.3,238.22,48.05994323]
[1732556513927,2.5179,238.29,238.22,48.05994323]
[1732556514302,2.5179,238.29,238.24,18.12755156]
[1732556514824,18.12755156,238.34,238.26,18.12755156]
[1732556515034,2.5175,238.33,238.28,18.12755156]
[1732556515231,2.5175,238.33,238.31,18.12755156]
[1732556515418,2.5175,238.33,238.29,18.12755156]
[1732556515907,8.8104,238.36,238.29,18.12755156]
[1732556516230,18.12755156,238.33,238.25,18.12755156]
[1732556516430,18.12755156,238.33,238.23,18.12755156]
[1732556517111,18.12755156,238.35,238.25,18.12755156]
[1732556517311,18.12755156,238.35,238.23,0.12549]
[1732556517312,18.12755156,238.35,238.27,18.12755156]
[1732556517625,8.8104,238.36,238.27,18.12755156]
[1732556518619,18.12755156,238.33,238.25,18.12755156]
[1732556518807,18.12755156,238.29,238.22,29.93239167]
[1732556519332,18.12755156,238.31,238.23,18.12755156]
[1732556519915,18.12755156,238.29,238.22,29.93239167]
[1732556520114,2.518,238.28,238.22,29.93239167]
[1732556520503,2.518,238.28,238.22,48.05994323]
[1732556521330,2.518,238.28,238.26,18.12755156]
[1732556521535,2.5174,238.34,238.26,18.12755156]
[1732556521829,18.12755156,238.41,238.32,18.12755156]
[1732556522042,6.451,238.43,238.23,10.25098]
[1732556522043,18.12755156,238.37,238.28,18.12755156]
[1732556522207,2.5167,238.4,238.22,29.93239167]
[1732556522208,18.12755156,238.33,238.24,18.12755156]
[1732556522409,18.12755156,238.31,238.22,48.05994323]
[1732556523321,18.12755156,238.31,238.24,18.12755156]
[1732556523520,23.776884,238.32,238.26,18.12755156]
[1732556524029,23.776884,238.34,238.26,18.12755156]
[1732556524223,23.776884,238.32,238.26,18.12755156]
[1732556524420,8.8112,238.33,238.28,18.12755156]
[1732556524421,2.5175,238.33,238.28,18.12755156]
[1732556525030,8.8112,238.33,238.26,18.12755156]
[1732556526210,6.2937,238.33,238.26,18.12755156]
[1732556527420,2.5174,238.34,238.26,18.12755156]
[1732556527941,2.34188323,238.34,238.26,18.12755156]
[1732556528135,18.12755156,238.33,238.24,18.12755156]
[1732556528336,18.12755156,238.29,238.22,29.93239167]
[1732556528929,8.8123,238.3,238.24,18.12755156]
[1732556529135,2.5178,238.3,238.24,18.12755156]
[1732556529333,2.5178,238.3,238.26,18.12755156]
[1732556529540,2.5169,238.38,238.29,18.12755156]
[1732556529754,2.5169,238.38,238.34,18.12755156]
[1732556529926,6.4338,238.49,238.36,18.12755156]
[1732556529927,18.12755156,238.47,238.36,18.12755156]
[1732556530126,2.5159,238.48,238.41,18.12755156]
[1732556530327,20.64345156,238.48,238.4,18.12755156]
[1732556531247,2.5159,238.48,238.42,18.12755156]
[1732556532344,18.12755156,238.44,238.36,18.12755156]
[1732556532520,18.12755156,238.42,238.34,18.12755156]
[1732556533431,12.5159,238.48,238.29,6.1906]
[1732556533432,18.12755156,238.4,238.32,18.12755156]
[1732556533633,18.12755156,238.44,238.36,18.12755156]
[1732556533942,18.12755156,238.46,238.38,18.12755156]
[1732556534347,2.5162,238.45,238.38,18.12755156]
[1732556535346,18.12755156,238.42,238.34,18.12755156]
[1732556535537,8.8068,238.45,238.3,16.3856]
[1732556535538,18.12755156,238.4,238.32,18.12755156]
[1732556535735,18.12755156,238.36,238.3,16.3856]
[1732556535920,18.12755156,238.44,238.26,4.1969]
[1732556535921,18.12755156,238.34,238.26,18.12755156]
[1732556536426,2.517,238.37,238.3,18.12755156]
[1732556536847,18.12755156,238.42,238.34,18.12755156]
[1732556537039,2.5166,238.41,238.34,18.12755156]
[1732556537244,18.12755156,238.4,238.32,18.12755156]
[1732556537421,18.12755156,238.36,238.28,18.12755156]
[1732556537824,23.776884,238.33,238.26,18.12755156]
[1732556538025,18.12755156,238.28,238.22,29.93239167]
[1732556538333,18.12755156,238.28,238.14,10.0]
[1732556538334,33.902374,238.14,238.0,2.0]
[1732556538530,33.902374,238.14,238.01,0.9603438]
[1732556538531,23.776884,238.09,238.01,0.9603438]
[1732556538734,18.12755156,238.1,238.02,18.12755156]
[1732556538944,18.12755156,238.12,238.03,0.96026311]
[1732556539247,18.12755156,238.08,238.03,0.96026311]
[1732556539751,18.12755156,238.06,238.03,0.96026311]
[1732556540247,18.12755156,238.08,238.03,0.96026311]
[1732556540429,18.12755156,238.06,238.03,0.96026311]
[1732556540635,2.5204,238.05,238.03,0.96026311]
[1732556541426,18.12755156,238.04,238.03,0.96026311]
[1732556542247,41.90443556,238.04,238.03,0.96026311]
[1732556542744,23.776884,238.03,238.0,2.0]
[1732556542961,20.64815156,238.03,238.0,2.0]
[1732556543255,18.12755156,238.01,238.0,2.0]
[1732556544652,20.64845156,238.01,238.0,2.0]
[1732556546656,20.64845156,238.01,237.7,0.4748604]
[1732556546657,10.0,237.75,237.7,0.4748604]
[1732556546864,10.0,237.65,237.47,18.12755156]
[1732556547160,18.12755156,237.52,237.45,22.685]
[1732556547361,18.12755156,237.6,237.45,22.685]
[1732556547362,18.12755156,237.5,237.45,22.685]
[1732556547660,18.12755156,237.53,237.49,30.0]
[1732556547839,18.12755156,237.51,237.49,30.0]
[1732556548041,18.12755156,237.51,237.45,22.1598604]
[1732556548248,18.12755156,237.46,237.29,9.5]
[1732556548553,2.5262,237.51,237.42,18.12755156]
[1732556548936,0.5,237.54,237.46,18.12755156]
[1732556549137,2.526,237.53,237.41,9.5]
[1732556549457,20.65355156,237.53,237.43,18.12755156]
[1732556549752,20.65355156,237.53,237.45,18.12755156]
[1732556549753,2.526,237.53,237.45,18.12755156]
[1732556550162,0.5,237.52,237.43,18.12755156]
[1732556550355,2.526,237.53,237.45,29.8824216]
[1732556552356,29.8824216,237.6,237.51,29.8824216]
[1732556552565,0.5,237.64,237.58,29.8824216]
[1732556552732,30.3824216,237.64,237.56,29.8824216]
[1732556552936,0.5,237.6,237.5,30.0079116]
[1732556553154,0.5,237.62,237.5,30.0079116]
[1732556553655,0.5,237.62,237.52,29.8824216]
[1732556553843,29.8824216,237.6,237.52,29.8824216]
[1732556554039,30.3824216,237.62,237.52,29.8824216]
[1732556554242,2.5247,237.65,237.58,29.8824216]
[1732556554443,0.5,237.64,237.58,29.8824216]
[1732556554641,2.5247,237.65,237.58,29.8824216]
[1732556556357,2.5249,237.63,237.58,29.8824216]
[1732556556769,2.5249,237.63,237.5,10.0]
[1732556556770,2.5249,237.63,237.6,29.8824216]
[1732556557140,2.5249,237.63,237.62,29.8824216]
[1732556557344,29.8824216,237.69,237.62,29.8824216]
[1732556557345,2.5243,237.69,237.62,29.8824216]
[1732556557659,0.5,237.71,237.6,29.8824216]
[1732556557660,3.024,237.71,237.68,29.8824216]
[1732556558161,0.5,237.68,237.64,29.8824216]
[1732556558466,2.5245,237.67,237.66,29.8824216]
[1732556558670,2.524,237.71,237.66,29.8824216]
[1732556558971,2.5236,237.75,237.7,29.8824216]
[1732556559270,2.5236,237.75,237.73,29.8824216]
[1732556559563,29.8824216,237.81,237.61,0.12549]
[1732556559564,2.523,237.81,237.74,29.8824216]
[1732556559872,2.523,237.81,237.8,29.8824216]
[1732556560067,0.5,237.8,237.78,29.8824216]
[1732556560442,2.523,237.81,237.78,29.8824216]
[1732556560659,2.523,237.81,237.8,29.8824216]
[1732556561164,2.523,237.81,237.7,20.4545]
[1732556561165,0.5,237.78,237.74,29.8824216]
[1732556561352,0.5,237.76,237.7,36.1300216]
[1732556561664,0.5,237.76,237.72,29.8824216]
[1732556561850,0.5,237.78,237.74,29.8824216]
[1732556562359,0.5,237.74,237.69,29.8824216]
[1732556562556,0.5,237.74,237.7,29.8824216]
[1732556562860,0.5,237.76,237.73,29.8824216]
[1732556563072,2.523,237.81,237.75,29.8824216]
[1732556563372,2.523,237.81,237.8,29.8824216]
[1732556563547,3.023,237.81,237.8,29.8824216]
[1732556563742,2.523,237.81,237.78,29.8824216]
[1732556563945,2.5228,237.83,237.8,29.8824216]
[1732556564255,2.5228,237.83,237.81,29.8824216]
[1732556564454,2.5225,237.85,237.82,29.8824216]
[1732556564654,2.5225,237.85,237.83,29.8824216]
[1732556564850,3.022,237.9,237.84,29.8824216]
[1732556565057,0.5,237.86,237.72,4.2065]
[1732556565253,0.5,237.86,237.82,29.8824216]
[1732556565767,2.522,237.9,237.85,29.8824216]
[1732556566072,2.522,237.9,237.77,19.5]
[1732556566073,3.022,237.9,237.88,29.8824216]
[1732556566243,3.022,237.9,237.86,29.8824216]
[1732556566443,3.022,237.9,237.87,29.8824216]
[1732556566662,2.522,237.9,237.87,29.8824216]
[1732556567271,3.022,237.9,237.86,29.8824216]
[1732556567567,2.522,237.9,237.87,29.8824216]
[1732556567771,3.0214,237.96,237.89,29.8824216]
[1732556567981,0.5,238.01,237.95,29.8824216]
[1732556568147,29.8824216,238.07,237.87,10.0]
[1732556568148,0.5,238.03,238.0,29.8824216]
[1732556568471,2.5205,238.05,238.02,29.8824216]
[1732556568664,2.5205,238.05,237.96,29.8824216]
[1732556568665,3.0203,238.07,237.97,0.12549]
[1732556568845,3.0203,238.07,238.05,29.8824216]
[1732556569045,3.0594486,238.11,238.06,29.8824216]
[1732556569244,0.5,238.08,238.05,29.8824216]
[1732556569471,0.5,238.08,238.04,29.8824216]
[1732556569655,2.5201,238.08,238.05,29.8824216]
[1732556569853,0.5395486,238.11,238.07,29.8824216]
[1732556570054,0.5395486,238.11,238.09,29.8824216]
[1732556570253,3.0199,238.1,238.04,29.8824216]
[1732556570464,3.0199,238.1,238.07,29.8824216]
[1732556570667,0.5395486,238.11,238.09,29.8824216]
[1732556570874,0.5395486,238.11,238.02,9.5]
[1732556570875,0.5395486,238.11,238.1,29.8824216]
[1732556571252,0.5395486,238.11,238.03,15.25619]
[1732556571456,3.0594486,238.11,238.07,29.8824216]
[1732556571675,0.5395486,238.11,238.09,29.8824216]
[1732556572156,3.0593486,238.11,238.07,29.8824216]
[1732556572469,0.5,238.08,238.06,29.8824216]
[1732556572660,0.5395486,238.11,238.07,29.8824216]
[1732556572852,0.5395486,238.11,238.1,29.8824216]
[1732556573449,0.5395486,238.11,238.1,30.0079116]
[1732556573844,0.5395486,238.11,238.1,40.0079116]
[1732556574048,2.5184,238.25,238.13,0.12549]
[1732556574294,3.0183,238.26,238.23,29.8824216]
[1732556574456,2.5183,238.26,238.23,29.8824216]
[1732556574979,3.0183,238.26,238.23,29.8824216]
[1732556575351,0.5,238.19,238.13,29.8824216]
[1732556575566,2.5183,238.26,238.01,6.5554]
[1732556575567,30.3824216,238.17,238.09,29.8824216]
[1732556575780,29.8824216,238.1,238.01,6.5554]
[1732556576084,0.5,238.06,238.01,6.5554]
[1732556576381,0.5,238.1,238.04,29.8824216]
[1732556576676,10.0,238.23,238.01,6.5554]
[1732556576677,0.5,238.14,238.09,29.8824216]
[1732556576984,0.5,238.18,238.12,29.8824216]
[1732556577275,2.5194,238.15,238.12,29.8824216]
[1732556577450,2.5188,238.2,238.14,29.8824216]
[1732556577652,2.5188,238.2,238.17,29.8824216]
[1732556577863,2.5188,238.2,238.11,29.8824216]
[1732556577864,0.5,238.14,238.11,29.8824216]
[1732556578080,2.5188,238.2,238.01,6.5554]
[1732556578081,0.5,238.12,238.09,29.8824216]
[1732556578267,0.5,238.12,238.07,29.8824216]
[1732556578763,0.5,238.08,238.02,29.8824216]
[1732556579276,2.52,238.09,238.04,29.8824216]
[1732556579779,2.5196,238.13,238.08,29.8824216]
[1732556579979,0.5,238.11,238.08,29.8824216]
[1732556580156,0.5,238.08,238.01,6.5554]
[1732556580481,0.5,238.1,238.03,29.8824216]
[1732556581173,0.5,238.08,238.01,36.4378216]
[1732556581488,2.5202,238.07,238.03,29.8824216]
[1732556581873,2.5201,238.09,238.05,29.8824216]
[1732556582653,2.5194,238.15,238.07,29.8824216]
[1732556582891,2.5194,238.15,238.12,29.8824216]
[1732556583191,2.5188,238.2,238.14,29.8824216]
[1732556583484,2.5186,238.23,238.19,29.8824216]
[1732556583689,0.5,238.3,238.22,29.8824216]
[1732556583876,0.5,238.32,238.28,29.8824216]
[1732556584069,0.5,238.34,238.29,29.8824216]
[1732556584395,2.5174,238.34,238.29,29.8824216]
[1732556584563,3.0172,238.36,238.31,29.8824216]
[1732556584763,29.8824216,238.32,238.23,29.8824216]
[1732556585097,6.2927,238.38,238.19,15.7398]
[1732556585098,29.8824216,238.38,238.31,29.8824216]
[1732556585381,32.3989216,238.42,238.34,0.12549]
[1732556585962,0.6242282,238.43,238.38,29.8824216]
[1732556586272,0.6242282,238.43,238.39,0.12549]
[1732556586477,29.8824216,238.4,238.33,0.12549]
[1732556586776,3.1407282,238.43,238.33,0.12549]
[1732556586777,0.6242282,238.43,238.38,0.12549]
[1732556587479,0.6242282,238.43,238.39,29.8824216]
[1732556587677,0.6242282,238.43,238.35,29.8824216]
[1732556587881,29.8824216,238.42,238.34,29.8824216]
[1732556588063,29.8824216,238.42,238.35,0.12549]
[1732556588660,30.3824216,238.42,238.34,29.8824216]
[1732556588865,29.8824216,238.4,238.32,29.8824216]
[1732556589089,29.8824216,238.38,238.31,0.12549]
[1732556589300,29.8824216,238.4,238.33,0.12549]
[1732556589463,0.6242282,238.43,238.38,29.8824216]
[1732556589763,0.6242282,238.43,238.37,0.12549]
[1732556589962,29.8824216,238.42,238.37,0.12549]
[1732556590178,0.6242282,238.43,238.37,0.12549]
[1732556590391,2.5165,238.42,238.32,29.8824216]
[1732556590560,29.8824216,238.4,238.31,9.5]
[1732556590762,29.8824216,238.34,238.24,9.5]
[1732556590983,29.8824216,238.32,238.24,43.5797216]
[1732556591188,29.8824216,238.3,238.22,29.8824216]
[1732556591391,2.5179,238.29,238.22,29.8824216]
[1732556591890,29.8824216,238.24,238.11,4.1996]
[1732556592090,29.8824216,238.24,238.1,51.7287216]
[1732556592091,29.8824216,238.19,238.1,51.7287216]
[1732556592287,29.8824216,238.17,238.1,21.8463]
[1732556592479,29.8824216,238.17,238.1,51.7287216]
[1732556592665,29.8824216,238.19,238.11,0.12549]
[1732556592865,29.8824216,238.19,238.1,51.7287216]
[1732556593169,29.8824216,238.19,238.11,0.12549]
[1732556593475,2.5186,238.22,238.14,29.8824216]
[1732556593789,2.5186,238.22,238.03,10.5028]
[1732556593790,0.5,238.07,237.92,6.2764]
[1732556594000,39.8824216,238.2,237.89,39.3824216]
[1732556594001,29.8824216,238.02,237.89,39.3824216]
[1732556594295,29.8824216,238.08,237.89,0.96082823]
[1732556594296,29.8824216,237.96,237.89,0.96082823]
[1732556594673,0.5,238.02,237.95,29.8824216]
[1732556594991,0.5,237.98,237.89,0.96082823]
[1732556595195,9.5,238.19,237.89,0.96082823]
[1732556595196,0.5,238.03,237.93,29.8824216]
[1732556595380,10.0,238.14,237.89,0.96082823]
[1732556595381,0.5,238.06,237.94,0.12549]
[1732556595688,2.5204,238.05,237.97,29.8824216]
[1732556595870,32.4028216,238.05,237.97,29.8824216]
[1732556596271,29.8824216,238.03,237.96,0.12549]
[1732556596467,29.8824216,237.99,237.91,45.5689216]
[1732556596670,29.8824216,237.97,237.91,6.1865]
[1732556596865,29.8824216,237.98,237.94,0.12549]
[1732556597174,0.5,238.04,237.92,0.12549]
[1732556597771,3.0206,238.03,237.91,6.1865]
[1732556597972,3.0206,238.03,237.92,0.12549]
[1732556598189,29.8824216,238.0,237.92,0.12549]
[1732556598794,29.8824216,238.02,237.95,29.8824216]
[1732556599691,0.5,237.88,237.68,15.594]
[1732556599874,29.8824216,237.92,237.82,29.8824216]
[1732556600072,0.5,238.02,237.91,29.8824216]
[1732556600273,29.8824216,238.01,237.91,29.8824216]
[1732556601097,29.8824216,237.97,237.9,0.12549]
[1732556601272,29.8824216,237.99,237.91,0.12549]
[1732556601776,29.8824216,237.99,237.89,0.12549]
[1732556601970,29.8824216,238.05,237.97,0.12549]
[1732556602169,3.0203,238.07,237.98,29.8824216]
[1732556602594,3.02,238.09,238.0,29.8824216]
[1732556602803,3.02,238.09,238.02,29.8824216]
[1732556603002,0.5,238.09,238.02,29.8824216]
[1732556603182,2.52,238.1,238.02,29.8824216]
[1732556603493,0.5,238.02,237.95,29.8824216]
[1732556603678,0.5,238.0,237.93,29.8824216]
[1732556603890,0.5,238.02,237.95,29.8824216]
[1732556604280,0.5,238.02,237.97,29.8824216]
[1732556605011,0.5,238.06,238.01,29.8824216]
[1732556605297,2.52,238.1,238.02,29.8824216]
[1732556605298,0.5,238.08,238.02,29.8824216]
[1732556605476,0.5,238.08,237.98,29.8824216]
[1732556605477,0.5,238.03,237.98,29.8824216]
[1732556605676,0.5,238.08,238.02,29.8824216]
[1732556606409,0.5,237.98,237.9,29.8824216]
[1732556606584,0.5,237.96,237.88,29.8824216]
[1732556606898,0.5,237.96,237.92,29.8824216]
[1732556607085,0.5,237.96,237.94,29.8824216]
[1732556607277,0.5,238.0,237.94,29.8824216]
[1732556607483,0.5,238.04,237.98,29.8824216]
[1732556607685,0.5,238.01,237.98,29.8824216]
[1732556608090,0.5,237.97,237.94,29.8824216]
[1732556608277,0.5,238.02,237.96,29.8824216]
[1732556608479,0.5,238.04,237.99,29.8824216]
[1732556608696,0.5,238.01,237.97,29.8824216]
[1732556609306,3.0206,238.04,237.99,29.8824216]
[1732556609688,0.5,238.08,238.03,29.8824216]